bitfinex/quotes_ETHUSD_20250114
["timestamp","ask_amount","ask_price","bid_price","bid_amount"]
[1736864127514,0.759,3209.5,3209.0,0.29937419]
[1736864127836,0.04341805,3209.3,3209.1,0.0311578]
[1736864128049,0.04348976,3209.4,3209.1,0.0311578]
[1736864128339,0.759,3209.5,3208.8,0.32259453]
[1736864129251,0.759,3209.5,3208.9,0.8167]
[1736864129455,0.759,3209.5,3209.0,0.32259456]
[1736864130558,0.7935,3209.8,3209.0,0.03115785]
[1736864131058,0.04221306,3209.7,3209.0,0.03115785]
[1736864131267,0.7935,3210.1,3209.1,2.96258412]
[1736864131469,0.7935,3210.1,3209.2,0.33052878]
[1736864131757,0.7935,3210.1,3209.3,0.7549]
[1736864131969,0.04242812,3210.0,3209.2,0.2993742]
[1736864132207,0.04242812,3210.0,3209.0,0.7549]
[1736864132208,0.07366666,3210.0,3209.0,0.7549]
[1736864132325,0.7935,3209.9,3208.7,0.7549]
[1736864132520,0.03123854,3209.8,3208.8,0.03115872]
[1736864132729,0.07364277,3209.8,3208.8,0.3225808]
[1736864133259,0.04240423,3209.8,3208.8,0.3225808]
[1736864133761,0.07364277,3209.8,3208.8,0.3225808]
[1736864133928,0.07364277,3209.8,3208.8,0.69917016]
[1736864134126,0.7935,3209.7,3208.8,0.29142208]
[1736864134366,0.82473854,3209.6,3208.9,0.29142208]
[1736864134819,0.04230862,3209.5,3208.9,0.29142208]
[1736864135659,0.7935,3209.4,3208.5,0.29142208]
[1736864135884,0.07339192,3209.3,3208.5,0.29142208]
[1736864136329,0.7935,3209.2,3208.5,0.29142208]
[1736864136656,0.7935,3208.6,3208.5,0.29142208]
[1736864136961,0.7935,3208.6,3207.2,0.7549]
[1736864136962,0.86699224,3208.6,3207.2,0.7549]
[1736864137321,0.86699224,3208.6,3207.3,0.35501438]
[1736864137528,0.8357537,3208.6,3207.5,2.96258412]
[1736864137756,0.7935,3208.6,3207.7,0.7549]
[1736864137957,0.07258852,3208.5,3207.7,1.12976539]
[1736864138736,0.07258852,3208.5,3207.8,0.2913765]
[1736864140464,0.07258852,3208.5,3207.9,0.2913765]
[1736864140869,0.04134998,3208.5,3208.0,0.03116987]
[1736864141166,0.7935,3209.2,3208.4,2.96258412]
[1736864141473,1.0455,3210.2,3208.8,2.96258412]
[1736864141772,0.03123854,3210.1,3209.2,0.7549]
[1736864142561,0.03123854,3210.1,3209.3,0.0311541]
[1736864143260,1.43140864,3210.5,3209.4,2.96258412]
[1736864143449,0.7935,3210.5,3209.5,0.33052443]
[1736864143770,0.7935,3210.5,3209.5,0.6218825]
[1736864144072,0.7935,3210.5,3209.6,0.7549]
[1736864144248,0.7935,3210.5,3209.7,0.03114927]
[1736864144455,0.7935,3210.5,3209.6,0.7549]
[1736864144956,0.7935,3210.5,3209.8,0.29135807]
[1736864145156,0.7935,3210.5,3209.9,0.03114932]
[1736864145363,0.7935,3210.8,3209.9,0.03114932]
[1736864145549,0.39010391,3211.4,3209.8,3.29135807]
[1736864145550,0.28323854,3211.3,3209.8,3.29135807]
[1736864145758,0.7935,3211.2,3209.9,0.96809591]
[1736864145943,0.03123854,3211.1,3209.9,0.96809591]
[1736864146149,0.03123854,3211.1,3210.0,0.29135807]
[1736864146372,2.96258412,3210.9,3210.0,0.29135807]
[1736864146558,0.7935,3210.8,3210.0,0.29135807]
[1736864146762,1.16910841,3210.8,3210.0,0.29135807]
[1736864147071,0.03123854,3210.7,3210.0,0.29135807]
[1736864147476,0.03123854,3210.7,3209.7,0.03115145]
[1736864147972,0.7935,3210.8,3209.7,3.54373557]
[1736864148173,0.252,3211.3,3209.8,0.7549]
[1736864148174,0.7935,3211.2,3209.8,0.7549]
[1736864148373,0.03123854,3211.1,3209.9,0.4610099]
[1736864148965,0.03123854,3211.1,3209.9,0.42986356]
[1736864149452,0.03123854,3211.1,3209.9,0.46101051]
[1736864149652,1.51210514,3211.2,3209.9,0.46101051]
[1736864149863,0.03123854,3211.1,3209.9,0.46101051]
[1736864150260,0.03123854,3211.1,3209.9,0.42986356]
[1736864150882,0.03123854,3211.1,3210.0,0.0311467]
[1736864151048,0.03123854,3211.1,3209.9,0.42986356]
[1736864151258,1.0455,3211.2,3210.1,0.8102]
[1736864151553,0.03123854,3211.1,3210.1,0.8102]
[1736864151771,0.03123854,3211.1,3210.1,0.84134605]
[1736864152171,0.0417581,3211.0,3210.1,0.84134605]
[1736864152679,0.04168644,3210.9,3210.1,0.84134605]
[1736864152896,0.82473854,3211.2,3210.1,0.8102]
[1736864153049,0.04182976,3211.1,3210.2,0.37727841]
[1736864153441,0.04182976,3211.1,3210.3,0.03114377]
[1736864153853,0.04182976,3211.1,3210.2,0.37727841]
[1736864154091,0.03123854,3211.0,3210.1,0.8102]
[1736864154289,0.04161971,3210.9,3210.1,0.8102]
[1736864154454,0.7611,3210.7,3209.7,0.8102]
[1736864154790,0.07342992,3210.6,3209.7,0.8102]
[1736864155286,0.04219138,3210.6,3209.7,0.8102]
[1736864155452,0.07342992,3210.6,3209.7,0.8102]
[1736864160274,0.04219138,3210.6,3209.8,0.03115142]
[1736864160611,0.7937,3211.4,3209.9,0.7975]
[1736864160826,0.04182136,3210.5,3210.0,0.38286514]
[1736864160956,0.65886695,3211.3,3210.1,0.7975]
[1736864161156,0.04196477,3210.4,3210.1,0.7975]
[1736864161385,0.03123854,3211.1,3210.1,0.7975]
[1736864162107,0.04243038,3211.0,3210.1,0.7975]
[1736864162453,0.03123854,3210.9,3210.1,0.7975]
[1736864162610,0.7937,3210.8,3209.7,0.7975]
[1736864162809,0.03123854,3210.7,3209.7,0.7975]
[1736864163011,0.7937,3210.4,3209.3,0.7975]
[1736864163303,0.07319697,3210.3,3209.3,0.7975]
[1736864163468,0.04195843,3210.3,3209.4,3.79123835]
[1736864163795,0.252,3211.0,3209.9,0.7975]
[1736864164002,0.03123854,3210.9,3209.9,0.7975]
[1736864164176,0.07349041,3210.9,3209.9,0.7975]
[1736864164505,0.07349041,3210.9,3210.1,0.7975]
[1736864165398,0.03123854,3210.9,3210.1,0.7975]
[1736864165706,0.04236507,3210.8,3210.1,0.7975]
[1736864165890,0.03123854,3211.0,3210.1,0.7975]
[1736864166074,0.04229341,3210.7,3210.1,0.7975]
[1736864166305,2.96258412,3211.5,3209.8,3.62575472]
[1736864166306,0.7937,3212.1,3210.7,0.7975]
[1736864166531,3.36223,3213.2,3211.6,0.7975]
[1736864166532,0.251,3212.5,3211.6,0.7975]
[1736864166730,0.03731373,3212.0,3211.6,0.82863358]
[1736864167017,0.251,3212.5,3211.6,0.7975]
[1736864167330,0.06753388,3212.4,3211.6,0.7975]
[1736864167514,0.7937,3212.3,3211.6,0.7975]
[1736864167902,0.06903183,3212.2,3211.6,0.7975]
[1736864169096,0.03779329,3212.2,3211.6,0.7975]
[1736864169332,0.7937,3212.6,3211.6,0.7975]
[1736864169530,0.28924951,3212.5,3211.6,0.7975]
[1736864169737,0.03123854,3212.4,3211.6,0.7975]
[1736864169902,0.03810526,3212.3,3211.6,0.7975]
[1736864170233,3.0,3211.9,3211.1,0.7975]
[1736864170396,0.62749695,3211.8,3211.1,0.7975]
[1736864170593,2.96258412,3211.4,3211.0,0.29028626]
[1736864170799,0.7937,3211.2,3211.0,0.29028626]
[1736864170999,0.03123854,3211.1,3210.3,2.83228781]
[1736864171213,0.06820815,3211.1,3210.3,2.83228781]
[1736864172041,0.47949897,3211.1,3210.3,2.83228781]
[1736864174006,0.03696961,3211.1,3210.4,0.03114602]
[1736864174409,0.251,3211.3,3210.4,0.03114602]
[1736864174705,0.03718357,3211.2,3210.4,0.03114602]
[1736864174934,0.251,3211.5,3210.5,0.7975]
[1736864175168,0.251,3211.5,3210.6,0.03114132]
[1736864175450,0.251,3211.5,3210.7,0.7623]
[1736864175659,0.251,3211.5,3210.8,0.52376624]
[1736864175807,0.251,3212.4,3211.1,0.55]
[1736864176013,0.251,3212.4,3211.3,4.3123]
[1736864176318,0.251,3212.4,3211.4,0.29077848]
[1736864176527,0.03836127,3212.3,3211.4,0.29077848]
[1736864176739,0.251,3212.4,3211.5,0.4914401]
[1736864176900,0.03836127,3212.3,3211.5,0.4914401]
[1736864177099,0.251,3212.4,3211.5,0.4914401]
[1736864178150,0.7818,3213.4,3211.6,0.7623]
[1736864178327,0.251,3212.9,3211.7,0.03113018]
[1736864178639,0.251,3213.1,3211.7,0.03113018]
[1736864178841,0.251,3213.1,3211.8,0.37934302]
[1736864179037,0.251,3213.1,3212.0,0.7623]
[1736864179223,0.251,3213.1,3212.1,0.03112604]
[1736864179417,0.251,3213.3,3212.1,0.03112604]
[1736864179611,1.0328,3213.4,3212.1,0.03112604]
[1736864180118,0.03864543,3213.3,3212.1,0.03112604]
[1736864180441,1.0328,3213.4,3212.1,0.03112604]
[1736864180748,1.0328,3213.4,3212.2,0.7623]
[1736864180749,0.0386132,3213.3,3212.2,0.7623]
[1736864180910,0.251,3213.4,3212.3,0.46875186]
[1736864181114,0.06985174,3213.3,3212.3,0.46875186]
[1736864181337,0.251,3213.4,3212.3,0.46875186]
[1736864181643,0.0386132,3213.3,3212.3,0.46875186]
[1736864182058,0.251,3213.6,3212.3,0.46875186]
[1736864182344,0.03782746,3213.5,3212.3,0.46875186]
[1736864182543,0.069066,3213.5,3212.3,0.46875186]
[1736864182746,0.03782746,3213.5,3212.3,0.46875186]
[1736864183535,0.069066,3213.5,3212.3,0.46875186]
[1736864183947,0.069066,3213.5,3212.3,0.43762688]
[1736864184147,0.069066,3213.5,3212.3,0.46875177]
[1736864184811,0.069066,3213.5,3212.3,0.43762688]
[1736864185212,0.069066,3213.5,3212.2,0.7623]
[1736864185624,0.7922,3213.4,3212.2,0.7623]
[1736864185819,0.03123854,3213.3,3212.2,0.7623]
[1736864186019,0.0701508,3213.3,3212.2,0.7623]
[1736864186937,0.03891226,3213.3,3212.3,0.03112693]
[1736864187133,0.251,3213.6,3212.3,0.03112693]
[1736864187338,0.03883769,3213.5,3212.3,0.03112693]
[1736864187517,0.03883769,3213.5,3212.5,0.8187]
[1736864187843,0.03123854,3213.5,3212.6,0.44015428]
[1736864188032,0.251,3213.6,3212.6,0.03112335]
[1736864188238,0.03891903,3213.4,3212.6,0.03112335]
[1736864188424,0.251,3213.6,3212.6,0.03112335]
[1736864188425,0.03903949,3213.5,3212.6,0.03112335]
[1736864188625,0.251,3213.6,3212.6,0.03112335]
[1736864188626,0.03889637,3213.3,3212.6,0.03112335]
[1736864188838,0.03896793,3213.4,3212.6,0.03112335]
[1736864189025,0.03860024,3213.2,3212.6,0.03112335]
[1736864189224,0.03867182,3213.3,3212.6,0.03112335]
[1736864189548,0.03874696,3213.2,3212.6,0.03112335]
[1736864189748,0.28223854,3213.7,3212.7,0.8187]
[1736864189947,0.03903322,3213.6,3212.7,0.8187]
[1736864190149,0.251,3213.7,3212.7,0.8187]
[1736864190348,0.03123854,3213.5,3212.7,0.8187]
[1736864190668,0.03941544,3213.4,3212.8,0.03112283]
[1736864191021,0.251,3213.9,3212.8,0.58112283]
[1736864191226,0.03123854,3213.8,3212.8,0.58112283]
[1736864191424,0.07117042,3213.8,3212.8,0.58112283]
[1736864191755,0.07117042,3213.8,3212.9,0.8187]
[1736864191956,0.07117042,3213.8,3213.0,0.03111788]
[1736864192127,0.07117042,3213.8,3212.9,0.8187]
[1736864192879,0.03993188,3213.8,3212.9,0.8187]
[1736864193035,0.03993188,3213.8,3213.0,0.03112146]
[1736864193232,0.251,3214.0,3213.0,0.03112146]
[1736864193450,0.251,3214.0,3213.1,0.8187]
[1736864193451,0.03745253,3213.7,3213.1,0.8187]
[1736864193678,0.06883416,3213.9,3213.1,0.8187]
[1736864193969,0.03765079,3213.8,3213.1,0.8187]
[1736864194332,0.03123854,3213.7,3213.1,0.8187]
[1736864194667,0.03755545,3213.6,3213.1,0.8187]
[1736864195181,0.251,3214.0,3213.1,0.8187]
[1736864195884,0.03766648,3213.9,3213.2,0.0311176]
[1736864196447,0.03766648,3213.9,3213.1,0.8187]
[1736864196448,0.06890502,3213.9,3213.1,0.8187]
[1736864197881,0.03766648,3213.9,3213.1,0.8187]
[1736864198060,0.03766648,3213.9,3213.2,0.0311173]
[1736864198278,0.03766648,3213.9,3213.3,0.8187]
[1736864198471,0.03766648,3213.9,3213.5,4.40154281]
[1736864198685,0.4186541,3215.2,3213.9,3.0]
[1736864198994,0.1686541,3215.2,3214.2,0.8187]
[1736864199314,0.1686541,3215.2,3214.5,0.8187]
[1736864199595,0.1686541,3215.2,3214.2,0.55]
[1736864199596,0.1686541,3215.2,3214.8,0.8187]
[1736864199806,0.1686541,3215.2,3215.1,0.8187]
[1736864200087,0.1686541,3215.2,3215.1,0.8497981]
[1736864200486,0.1686541,3215.2,3215.1,1.3997981]
[1736864200698,0.25,3217.9,3216.4,0.8187]
[1736864200904,0.03123854,3217.8,3216.4,0.8187]
[1736864201065,0.03783201,3217.8,3216.5,0.03108692]
[1736864201423,0.03123854,3217.7,3216.4,0.8187]
[1736864201909,6.69084281,3217.5,3215.5,0.8187]
[1736864202202,3.0,3216.5,3215.5,0.8187]
[1736864202350,0.31868804,3216.4,3215.5,0.8187]
[1736864204565,0.7922,3216.3,3215.5,0.8187]
[1736864204757,0.03742157,3216.2,3215.5,0.8187]
[1736864204979,0.7922,3216.7,3215.5,0.8187]
[1736864205162,0.03709166,3216.6,3215.5,0.8187]
[1736864205680,0.03709166,3216.6,3215.8,3.58284281]
[1736864205886,0.03709166,3216.6,3215.9,1.22197345]
[1736864206087,0.03123854,3217.0,3215.9,1.22197345]
[1736864206463,0.03987367,3216.9,3215.9,1.22197345]
[1736864207069,0.03987367,3216.9,3215.9,1.19088428]
[1736864207266,0.03123854,3217.1,3215.9,1.19088428]
[1736864207471,0.03123854,3217.1,3215.9,0.8326]
[1736864207662,0.03997834,3217.0,3216.0,0.03108918]
[1736864207885,0.03997834,3217.0,3216.0,0.58108918]
[1736864208261,0.25,3217.3,3216.0,0.58108918]
[1736864208680,0.03986616,3217.2,3216.0,0.58108918]
[1736864208902,0.0711047,3217.2,3215.9,0.8326]
[1736864209051,0.03123854,3217.2,3215.9,0.8326]
[1736864209397,0.04014196,3217.1,3215.9,0.8326]
[1736864209576,0.03123854,3217.0,3215.9,0.8326]
[1736864209779,0.03999917,3216.9,3215.9,0.8326]
[1736864210152,0.03123854,3216.8,3215.9,0.8326]
[1736864210450,0.03968273,3216.7,3215.9,0.8326]
[1736864210679,3.0,3216.5,3215.4,0.8326]
[1736864210899,0.03123854,3216.4,3215.4,0.8326]
[1736864211093,0.07104068,3216.4,3215.4,0.8326]
[1736864211311,0.03980214,3216.4,3215.5,0.03109777]
[1736864211478,0.03980214,3216.4,3215.4,0.86369473]
[1736864211656,0.03123854,3216.6,3215.4,1.27725375]
[1736864211857,0.03954005,3216.3,3215.4,1.27725375]
[1736864212057,0.03968289,3216.5,3215.5,0.03109476]
[1736864212258,0.03946862,3216.2,3215.5,0.03109476]
[1736864212494,0.03984132,3216.4,3215.4,1.27725375]
[1736864212698,0.03123854,3216.6,3215.4,0.8326]
[1736864212890,0.03983755,3216.3,3215.4,0.8326]
[1736864213056,0.03989909,3216.5,3215.4,0.8326]
[1736864213263,0.03996065,3216.2,3215.4,0.8326]
[1736864213586,0.03123854,3216.2,3215.4,0.8326]
[1736864214299,0.25,3216.1,3215.4,0.8326]
[1736864214484,0.03123854,3216.0,3215.4,0.8326]
[1736864214659,0.86249973,3216.0,3215.0,0.7821]
[1736864214860,3.0,3215.9,3215.0,0.7821]
[1736864215117,0.77577279,3215.8,3215.0,0.7821]
[1736864215412,0.77577279,3215.8,3214.7,2.82304851]
[1736864215413,3.0,3215.6,3214.7,2.82304851]
[1736864215635,0.03916451,3215.5,3214.7,2.82304851]
[1736864215974,0.25,3215.8,3214.8,0.03110476]
[1736864216270,0.03123854,3215.7,3214.7,2.85414942]
[1736864216473,0.03123854,3215.7,3214.8,0.36362494]
[1736864216924,0.03923597,3215.6,3214.8,0.36362494]
[1736864217480,0.03123854,3215.7,3214.8,0.36362494]
[1736864217677,0.03916451,3215.5,3214.8,0.36362494]
[1736864218014,0.03123854,3215.7,3214.8,0.36362494]
[1736864218015,0.03909305,3215.4,3214.8,0.36362494]
[1736864218306,0.25,3215.8,3215.0,0.7821]
[1736864218508,0.03902159,3215.3,3215.1,0.03109918]
[1736864218714,4.37434281,3216.0,3215.0,0.7821]
[1736864218878,0.03123854,3215.9,3215.0,0.7821]
[1736864219072,0.44055814,3215.8,3215.0,0.7821]
[1736864219384,0.06899398,3215.7,3215.0,0.7821]
[1736864220818,3.0,3215.5,3214.7,2.82304851]
[1736864221109,0.06853556,3215.4,3214.7,2.82304851]
[1736864222413,0.03729702,3215.4,3214.7,2.82304851]
[1736864222674,3.0,3215.2,3214.7,2.82304851]
[1736864222893,0.7847,3215.0,3213.5,0.7651]
[1736864223178,0.7847,3215.0,3213.5,1.05419713]
[1736864223179,3.06783821,3214.9,3213.5,1.05419713]
[1736864224156,0.06783821,3214.9,3213.5,1.05419713]
[1736864224368,0.03659967,3214.9,3213.6,0.03111293]
[1736864224573,0.06783821,3214.9,3213.5,0.7651]
[1736864224771,0.06783821,3214.9,3213.7,0.7651]
[1736864225069,3.03659967,3214.9,3213.7,0.7651]
[1736864225274,0.25,3214.8,3213.7,0.7651]
[1736864225477,0.03123854,3214.7,3213.7,0.7651]
[1736864225778,0.03123854,3214.6,3213.7,0.7651]
[1736864226072,0.03623828,3214.5,3213.7,0.7651]
[1736864226470,0.03623828,3214.5,3213.8,0.03111427]
[1736864226667,0.03623828,3214.5,3213.7,0.79621166]
[1736864226874,1.15452395,3215.3,3213.8,0.87020879]
[1736864226875,0.7847,3215.3,3213.8,0.87020879]
[1736864227077,0.03123854,3215.2,3214.1,0.7651]
[1736864227236,0.28629031,3215.2,3214.1,0.7651]
[1736864227441,0.249,3215.2,3214.1,0.7651]
[1736864227876,0.03709607,3215.1,3214.1,0.7651]
[1736864228081,0.03123854,3215.1,3214.2,0.28909713]
[1736864229174,0.03123854,3215.1,3214.1,0.7962068]
[1736864229175,0.03123854,3215.1,3214.3,0.28909713]
[1736864229377,0.249,3215.2,3214.3,0.32020393]
[1736864229586,0.03712804,3215.1,3214.3,0.28909713]
[1736864229882,0.03123854,3215.2,3214.3,0.28909713]
[1736864230106,0.249,3215.3,3214.4,0.03110679]
[1736864230281,0.03712804,3215.1,3214.4,0.03110679]
[1736864230494,0.03722388,3215.2,3214.3,0.28909713]
[1736864230780,0.03123854,3215.2,3214.4,0.28909713]
[1736864230983,0.03715244,3215.1,3214.4,0.28909713]
[1736864231478,0.7847,3215.6,3214.4,0.28909713]
[1736864231479,0.7847,3215.6,3214.4,0.32020393]
[1736864231685,0.03712981,3215.0,3214.5,0.7651]
[1736864231983,0.7847,3215.6,3214.5,0.7651]
[1736864231984,0.03123854,3215.5,3214.6,0.03110322]
[1736864232178,0.03726914,3215.4,3214.5,1.08530024]
[1736864232384,0.7847,3215.6,3214.5,1.08530024]
[1736864232676,0.249,3216.3,3214.9,0.7651]
[1736864232883,0.03123854,3216.8,3215.2,0.7651]
[1736864233079,0.03695238,3216.2,3215.3,0.58109767]
[1736864233382,0.03123854,3216.6,3215.3,0.55]
[1736864233584,0.03756329,3216.5,3215.3,0.55]
[1736864233969,0.03123854,3216.4,3215.2,0.7651]
[1736864234287,0.03742648,3216.3,3215.5,0.55]
[1736864234487,0.03742648,3216.3,3215.8,0.55]
[1736864234674,0.03123854,3217.0,3215.9,0.03108874]
[1736864234862,0.03123854,3217.0,3215.8,1.3151]
[1736864235261,0.03877803,3216.9,3215.8,1.3151]
[1736864235588,0.03877803,3216.9,3215.9,0.03108908]
[1736864235789,0.7847,3217.3,3216.0,0.7651]
[1736864236098,0.03890194,3217.2,3216.1,0.03108908]
[1736864236255,0.03890194,3217.2,3216.1,0.58108908]
[1736864236461,0.03123854,3217.2,3216.3,0.758]
[1736864236980,0.03123854,3217.2,3216.4,0.5810852]
[1736864237175,0.28023854,3217.6,3216.4,0.5810852]
[1736864237379,0.03968256,3217.5,3216.4,0.5810852]
[1736864237619,0.03968256,3217.5,3216.5,0.758]
[1736864237793,0.66585457,3217.7,3216.7,0.758]
[1736864238108,0.8183,3218.3,3216.8,0.758]
[1736864238109,0.03123854,3218.2,3216.8,0.758]
[1736864238391,0.64448472,3218.2,3216.8,0.758]
[1736864238698,3.03870526,3218.1,3216.8,0.758]
[1736864238857,0.249,3218.0,3216.8,0.758]
[1736864239199,0.03824788,3217.9,3217.0,0.758]
[1736864239357,0.03123854,3218.2,3217.0,0.758]
[1736864239688,0.03843709,3218.1,3217.0,0.758]
[1736864239892,0.03843709,3218.1,3217.1,0.03107967]
[1736864240301,0.06967563,3218.1,3217.0,0.758]
[1736864241713,3.7609,3217.9,3217.0,0.758]
[1736864241907,0.06967563,3218.1,3217.1,0.03108286]
[1736864241908,0.03843709,3218.1,3217.1,0.03108286]
[1736864242120,0.03966923,3217.8,3217.1,0.03108071]
[1736864242293,0.03981191,3218.0,3217.1,0.03108071]
[1736864242494,0.249,3218.3,3217.1,0.03108071]
[1736864242717,0.03955088,3217.9,3217.1,0.03108071]
[1736864242928,3.58284281,3218.0,3217.0,0.758]
[1736864243104,0.03964627,3217.8,3217.0,0.758]
[1736864243303,0.03123854,3217.7,3217.0,0.758]
[1736864243522,0.07094235,3217.7,3216.4,0.7765]
[1736864243717,3.03123854,3217.6,3216.4,0.7765]
[1736864243932,0.03123854,3217.5,3216.4,0.7765]
[1736864244301,0.03931905,3217.4,3216.4,0.7765]
[1736864244500,3.03123854,3217.3,3216.4,0.7765]
[1736864244941,0.03914712,3217.2,3216.4,0.7765]
[1736864245426,0.03123854,3217.6,3216.4,0.7765]
[1736864245611,0.43927637,3217.5,3216.4,0.7765]
[1736864245804,0.03123854,3217.4,3216.4,0.7765]
[1736864246003,0.0394309,3217.3,3216.4,0.7765]
[1736864246417,0.0394309,3217.3,3216.5,0.03108734]
[1736864246668,0.62720264,3217.8,3216.6,0.7765]
[1736864246801,0.03888323,3217.2,3216.7,0.03108345]
[1736864247007,0.7609,3218.2,3216.8,0.7765]
[1736864247210,0.53297153,3218.1,3216.8,0.7765]
[1736864247421,0.53297153,3218.1,3216.3,3.58108193]
[1736864247422,0.53297153,3218.1,3216.9,0.55]
[1736864247604,0.07057339,3218.1,3217.0,0.7765]
[1736864248606,0.7609,3218.0,3217.0,0.7765]
[1736864248809,0.07025195,3217.9,3217.0,0.7765]
[1736864250228,0.03123854,3217.8,3217.0,0.7765]
[1736864250433,0.03901202,3217.7,3217.0,0.7765]
[1736864250631,1.05933854,3218.2,3217.0,0.7765]
[1736864250873,0.44515979,3218.1,3217.0,0.7765]
[1736864251027,0.28023854,3218.0,3217.0,0.7765]
[1736864251232,0.03905942,3217.9,3217.0,0.7765]
[1736864252810,0.03123854,3217.8,3217.0,0.7765]
[1736864253015,0.03868642,3217.7,3217.0,0.7765]
[1736864253844,0.249,3218.0,3217.0,0.7765]
[1736864254149,0.03891729,3217.9,3217.0,0.7765]
[1736864254520,0.07015583,3217.9,3217.0,0.7765]
[1736864255345,0.03891729,3217.9,3217.0,0.7765]
[1736864257018,0.249,3218.0,3217.0,0.7765]
[1736864257249,0.80420035,3218.4,3217.3,0.55]
[1736864257552,0.03901182,3218.3,3217.5,0.7602]
[1736864257761,0.03901182,3218.3,3217.7,0.7602]
[1736864258573,0.1686541,3218.4,3217.7,0.7602]
[1736864259322,0.03899541,3218.3,3217.9,0.7602]
[1736864261667,0.03123854,3218.3,3218.0,0.28932308]
[1736864261825,0.03712266,3218.2,3218.0,0.28932308]
[1736864262026,0.03123854,3218.3,3218.0,0.28932308]
[1736864262226,0.03678913,3218.2,3218.0,0.28932308]
[1736864262442,0.03123854,3218.1,3218.0,0.28932308]
[1736864262655,0.06785475,3218.1,3217.3,0.7934]
[1736864262849,0.51566451,3218.1,3217.3,0.7934]
[1736864263567,0.06785475,3218.1,3217.3,0.7934]
[1736864264439,0.03661621,3218.1,3217.5,0.7934]
[1736864264636,0.19989264,3218.4,3217.5,0.7934]
[1736864264826,0.1686541,3218.4,3217.6,0.03107486]
[1736864265161,0.03743001,3218.3,3217.7,0.7934]
[1736864265362,0.06866855,3218.3,3217.7,0.7934]
[1736864265549,0.03123854,3218.3,3217.7,0.7934]
[1736864265938,0.1686541,3218.4,3217.7,0.7934]
[1736864266339,0.03743001,3218.3,3217.8,0.32039939]
[1736864266755,0.1686541,3218.4,3217.8,0.32039939]
[1736864267128,0.03770547,3218.3,3217.8,0.28932308]
[1736864267702,0.1686541,3218.4,3217.8,0.28932308]
[1736864267965,0.1686541,3218.4,3217.9,0.32039522]
[1736864268134,0.03778416,3218.3,3218.0,0.7982]
[1736864268465,0.1686541,3218.4,3218.0,0.7982]
[1736864268767,0.1686541,3218.4,3218.1,0.28932308]
[1736864269143,0.03790216,3218.3,3218.1,0.28932308]
[1736864269563,0.1686541,3218.4,3218.1,0.28932308]
[1736864270169,0.1686541,3218.4,3218.2,0.28932308]
[1736864271476,0.1686541,3218.4,3218.0,0.82927023]
[1736864271666,0.1686541,3218.4,3218.1,0.03107025]
[1736864271863,0.1686541,3218.4,3218.2,0.7982]
[1736864272165,0.1686541,3218.4,3217.4,0.7982]
[1736864272364,0.1686541,3218.4,3217.5,0.37982]
[1736864272551,0.1686541,3218.4,3217.5,0.6701187]
[1736864273285,0.03828877,3218.3,3217.5,0.2902987]
[1736864273440,0.06952731,3218.3,3217.5,0.2902987]
[1736864273976,0.06952731,3218.3,3217.6,0.2902987]
[1736864274178,0.06952731,3218.3,3217.2,2.82621334]
[1736864274179,0.762,3218.2,3217.2,2.53160021]
[1736864274382,0.762,3217.3,3215.8,0.7982]
[1736864274543,0.03886639,3217.2,3215.8,0.7982]
[1736864274744,0.03738602,3217.2,3215.9,0.7982]
[1736864274943,0.03738602,3217.2,3216.1,0.7982]
[1736864275140,0.03885714,3217.3,3216.1,0.7982]
[1736864275364,0.762,3217.2,3216.1,0.7982]
[1736864275560,0.03886024,3217.1,3216.1,0.7982]
[1736864275970,0.03695034,3217.0,3216.1,0.7982]
[1736864276377,0.0388583,3216.9,3216.1,0.7982]
[1736864276799,0.762,3217.2,3215.7,0.7982]
[1736864276800,0.03886347,3216.8,3215.7,0.7982]
[1736864277165,0.03648251,3216.7,3215.7,0.7982]
[1736864277365,0.762,3216.6,3215.7,0.7982]
[1736864277566,0.03886693,3216.5,3215.7,0.7982]
[1736864277878,0.03633973,3216.5,3215.7,0.7982]
[1736864278083,0.07520578,3216.5,3215.7,0.7982]
[1736864278467,3.65804859,3216.5,3214.7,0.7982]
[1736864279027,0.07520578,3216.5,3214.9,0.7982]
[1736864279203,0.03633973,3216.5,3215.3,0.7982]
[1736864279502,0.762,3216.6,3215.4,0.55]
[1736864279799,0.07284766,3216.5,3215.4,0.55]
[1736864279998,0.07284766,3216.5,3215.3,0.7982]
[1736864280364,0.07285093,3216.5,3215.3,1.17802]
[1736864280569,3.58284281,3216.4,3215.3,0.7982]
[1736864280877,0.07271173,3216.3,3215.3,0.7982]
[1736864281688,0.762,3216.2,3214.9,0.7982]
[1736864282006,0.07257204,3216.1,3214.9,0.7982]
[1736864282300,3.65541485,3216.1,3214.9,0.7982]
[1736864282596,0.44174149,3216.0,3214.9,0.7982]
[1736864282837,0.03887501,3215.9,3214.9,0.7982]
[1736864283038,0.07242938,3215.9,3214.9,0.7982]
[1736864283804,0.03355437,3215.9,3214.9,0.7982]
[1736864284027,0.762,3215.6,3214.3,0.7982]
[1736864284221,0.4733631,3215.5,3214.3,1.19427346]
[1736864284416,0.50663175,3215.5,3214.3,1.19427346]
[1736864284630,0.50663175,3215.5,3214.3,1.80716543]
[1736864284830,0.50663175,3215.5,3214.3,0.7982]
[1736864285028,3.58284281,3215.4,3214.3,0.7982]
[1736864285215,0.07200696,3215.3,3214.3,0.7982]
[1736864286349,0.07200696,3215.3,3213.9,0.1625642]
[1736864286350,0.7799,3215.2,3214.2,0.32519695]
[1736864286563,0.03888484,3215.1,3214.2,0.32519695]
[1736864286714,3.6547105,3215.1,3214.2,0.32519695]
[1736864287046,3.6547105,3215.1,3213.9,0.8213]
[1736864287047,0.46826105,3215.0,3213.9,0.8213]
[1736864287234,0.7799,3214.8,3213.9,0.8213]
[1736864287433,0.03888762,3214.7,3213.9,0.8213]
[1736864287637,0.07158461,3214.7,3213.9,0.8213]
[1736864287838,0.07158461,3214.7,3213.6,1.3713]
[1736864288024,0.07158461,3214.7,3213.6,0.49603087]
[1736864288229,0.03888932,3214.6,3213.5,3.8213]
[1736864288626,0.03203263,3214.5,3213.5,3.8213]
[1736864289816,0.03203263,3214.5,3213.6,0.55]
[1736864290215,0.0388893,3214.7,3213.6,0.55]
[1736864290432,0.03192983,3214.6,3213.6,0.55]
[1736864290645,0.03192983,3214.6,3213.7,0.43713]